[Event "Titled Tuesday Blitz June 6 Early 2023"]
[White "Marcziter, Dmitrii"]
[Black "Matinian, Nikita"]
[WhiteFideId "13900765"]
[BlackFideId "24129100"]
[WhiteElo "2162"]
[BlackElo "2422"]
[Result "0-1"]
[Round "4"]
[TimeControl "180+2"]
[Date "2023.06.06"]
[WhiteClock "0:00:16"]
[BlackClock "0:00:15"]
[Board "118"]

1. d4 {[%clk 0:03:00]}  g6 {[%clk 0:02:59]} 2. c4 {[%clk 0:02:58]}  Bg7 {[%clk 0:02:58]} 3. Nf3 {[%clk 0:02:58]}  d6 {[%clk 0:02:58]} 4. Nc3 {[%clk 0:02:56]}  e5 {[%clk 0:02:58]} 5. Bg5 {[%clk 0:02:56]}  f6 {[%clk 0:02:54]} 6. Bc1 {[%clk 0:02:53]}  Ne7 {[%clk 0:02:53]} 7. e4 {[%clk 0:02:50]}  O-O {[%clk 0:02:46]} 8. Be2 {[%clk 0:02:49]}  Bg4 {[%clk 0:02:44]} 9. h3 {[%clk 0:02:48]}  Bxf3 {[%clk 0:02:44]} 10. Bxf3 {[%clk 0:02:47]}  Nbc6 {[%clk 0:02:37]} 11. d5 {[%clk 0:02:46]}  Nd4 {[%clk 0:02:37]} 12. O-O {[%clk 0:02:44]}  c5 {[%clk 0:02:36]} 13. dxc6 {[%clk 0:02:43]}  bxc6 {[%clk 0:02:36]} 14. Be3 {[%clk 0:02:42]}  c5 {[%clk 0:02:36]} 15. Be2 {[%clk 0:02:35]}  Rb8 {[%clk 0:02:36]} 16. b3 {[%clk 0:02:34]}  f5 {[%clk 0:02:36]} 17. f4 {[%clk 0:02:28]}  fxe4 {[%clk 0:02:30]} 18. Nxe4 {[%clk 0:02:25]}  Nef5 {[%clk 0:02:30]} 19. Bxd4 {[%clk 0:02:12]}  exd4 {[%clk 0:02:26]} 20. Qd3 {[%clk 0:02:09]}  Qe7 {[%clk 0:02:24]} 21. Bf3 {[%clk 0:02:07]}  Rbe8 {[%clk 0:02:23]} 22. Ng5 {[%clk 0:02:01]}  Ne3 {[%clk 0:02:22]} 23. Bd5+ {[%clk 0:01:54]}  Kh8 {[%clk 0:02:11]} 24. Ne6 {[%clk 0:01:51]}  Rf6 {[%clk 0:02:05]} 25. Nxg7 {[%clk 0:01:49]}  Kxg7 {[%clk 0:02:02]} 26. Rf3 {[%clk 0:01:48]}  h5 {[%clk 0:01:41]} 27. Re1 {[%clk 0:01:45]}  h4 {[%clk 0:01:40]} 28. Re2 {[%clk 0:01:40]}  Qf8 {[%clk 0:01:39]} 29. Ref2 {[%clk 0:01:38]}  Nxd5 {[%clk 0:01:38]} 30. cxd5 {[%clk 0:01:38]}  Re1+ {[%clk 0:01:38]} 31. Kh2 {[%clk 0:01:37]}  Qe7 {[%clk 0:01:34]} 32. Qb5 {[%clk 0:01:26]}  Rf5 {[%clk 0:01:30]} 33. Qc6 {[%clk 0:01:24]}  Rd1 {[%clk 0:01:17]} 34. b4 {[%clk 0:01:22]}  d3 {[%clk 0:01:17]} 35. bxc5 {[%clk 0:01:21]}  d2 {[%clk 0:01:09]} 36. Rf1 {[%clk 0:01:06]}  Qe1 {[%clk 0:00:54]} 37. cxd6 {[%clk 0:01:02]}  Rc1 {[%clk 0:00:23]} 38. Qb7+ {[%clk 0:00:38]}  Rf7 {[%clk 0:00:23]} 39. Qb2+ {[%clk 0:00:37]}  Kh7 {[%clk 0:00:23]} 40. d7 {[%clk 0:00:31]}  Rxd7 {[%clk 0:00:19]} 41. Qf6 {[%clk 0:00:30]}  d1=Q {[%clk 0:00:14]} 42. f5 {[%clk 0:00:24]}  Qg3+ {[%clk 0:00:14]} 43. Kg1 {[%clk 0:00:19]}  Qxf1+ {[%clk 0:00:10]} 44. Rxf1 {[%clk 0:00:18]}  Qe3+ {[%clk 0:00:09]} 45. Kh2 {[%clk 0:00:17]}  Qg3+ {[%clk 0:00:09]} 46. Kg1 {[%clk 0:00:17]}  Rxf1+ {[%clk 0:00:07]} 47. Kxf1 {[%clk 0:00:18]}  Qd3+ {[%clk 0:00:07]} 48. Kg1 {[%clk 0:00:18]}  Qxf5 {[%clk 0:00:07]} 49. Qxh4+ {[%clk 0:00:17]}  Kg7 {[%clk 0:00:07]} 50. Qd4+ {[%clk 0:00:18]}  Kf7 {[%clk 0:00:08]} 51. Qc4 {[%clk 0:00:16]}  Qxd5 {[%clk 0:00:08]} 52. Qf4+ {[%clk 0:00:16]}  Qf5 {[%clk 0:00:07]} 53. Qc4+ {[%clk 0:00:17]}  Kg7 {[%clk 0:00:07]} 54. Qc3+ {[%clk 0:00:17]}  Qf6 {[%clk 0:00:07]} 55. Qg3 {[%clk 0:00:16]}  Qb6+ {[%clk 0:00:07]} 56. Kh2 {[%clk 0:00:16]}  Qd6 {[%clk 0:00:07]} 57. Qxd6 {[%clk 0:00:16]}  Rxd6 {[%clk 0:00:08]} 58. h4 {[%clk 0:00:16]}  Ra6 {[%clk 0:00:09]} 59. a4 {[%clk 0:00:16]}  Rxa4 {[%clk 0:00:09]} 60. g3 {[%clk 0:00:16]}  Kh6 {[%clk 0:00:08]} 61. Kh3 {[%clk 0:00:17]}  Kh5 {[%clk 0:00:09]} 62. Kg2 {[%clk 0:00:15]}  Kg4 {[%clk 0:00:09]} 63. h5 {[%clk 0:00:14]}  Ra2+ {[%clk 0:00:10]} 64. Kf1 {[%clk 0:00:14]}  gxh5 {[%clk 0:00:11]} 65. Ke1 {[%clk 0:00:14]}  Kxg3 {[%clk 0:00:11]} 66. Kd1 {[%clk 0:00:14]}  Rf2 {[%clk 0:00:12]} 67. Kc1 {[%clk 0:00:14]}  h4 {[%clk 0:00:13]} 68. Kb1 {[%clk 0:00:15]}  h3 {[%clk 0:00:14]} 69. Ka1 {[%clk 0:00:16]}  h2 {[%clk 0:00:15]} 0-1


[Site "https://www.chess.com"]

[Event "Titled Tuesday Blitz June 6 Early 2023"]
[White "Mogirzan, Matei-Valeriu"]
[Black "De La Colina, Nicolas"]
[WhiteFideId "1257455"]
[BlackFideId "30946921"]
[WhiteElo "1733"]
[BlackElo "2046"]
[Result "0-1"]
[Round "4"]
[TimeControl "180+2"]
[Date "2023.06.06"]
[WhiteClock "0:00:03"]
[BlackClock "0:00:52"]
[Board "119"]

1. e4 {[%clk 0:03:00]}  c5 {[%clk 0:02:59]} 2. Nf3 {[%clk 0:03:00]}  Nc6 {[%clk 0:02:59]} 3. d4 {[%clk 0:02:56]}  cxd4 {[%clk 0:03:00]} 4. c3 {[%clk 0:02:56]}  Qb6 {[%clk 0:03:01]} 5. cxd4 {[%clk 0:02:55]}  d6 {[%clk 0:02:54]} 6. Nc3 {[%clk 0:02:47]}  Nf6 {[%clk 0:02:53]} 7. e5 {[%clk 0:02:30]}  dxe5 {[%clk 0:02:54]} 8. dxe5 {[%clk 0:02:28]}  Ng4 {[%clk 0:02:55]} 9. Qe2 {[%clk 0:02:13]}  Bf5 {[%clk 0:02:35]} 10. h3 {[%clk 0:02:10]}  Nh6 {[%clk 0:02:35]} 11. Be3 {[%clk 0:01:57]}  Qa5 {[%clk 0:02:32]} 12. O-O-O {[%clk 0:01:52]}  e6 {[%clk 0:02:30]} 13. Qb5 {[%clk 0:01:46]}  Qc7 {[%clk 0:02:06]} 14. g4 {[%clk 0:01:38]}  Bg6 {[%clk 0:02:04]} 15. Nd4 {[%clk 0:01:16]}  Be7 {[%clk 0:01:57]} 16. f4 {[%clk 0:00:54]}  O-O {[%clk 0:01:53]} 17. f5 {[%clk 0:00:26]}  Nxd4 {[%clk 0:01:41]} 18. Rxd4 {[%clk 0:00:23]}  exf5 {[%clk 0:01:41]} 19. Rd7 {[%clk 0:00:21]}  Qc8 {[%clk 0:01:20]} 20. Rxe7 {[%clk 0:00:20]}  fxg4 {[%clk 0:01:20]} 21. Qxb7 {[%clk 0:00:18]}  Nf5 {[%clk 0:01:16]} 22. Rc7 {[%clk 0:00:08]}  Qxb7 {[%clk 0:01:15]} 23. Rxb7 {[%clk 0:00:09]}  Nxe3 {[%clk 0:01:16]} 24. hxg4 {[%clk 0:00:08]}  Nxg4 {[%clk 0:01:14]} 25. Nd5 {[%clk 0:00:02]}  Nxe5 {[%clk 0:01:09]} 26. Ne7+ {[%clk 0:00:02]}  Kh8 {[%clk 0:01:09]} 27. Rg1 {[%clk 0:00:02]}  Rfe8 {[%clk 0:01:03]} 28. Nxg6+ {[%clk 0:00:02]}  hxg6 {[%clk 0:01:04]} 29. Bg2 {[%clk 0:00:02]}  Rac8+ {[%clk 0:01:01]} 30. Kb1 {[%clk 0:00:02]}  a5 {[%clk 0:00:55]} 31. Rb5 {[%clk 0:00:02]}  Nc4 {[%clk 0:00:55]} 32. Bf3 {[%clk 0:00:01]}  Nd2+ {[%clk 0:00:54]} 33. Ka1 {[%clk 0:00:02]}  Nxf3 {[%clk 0:00:55]} 34. Rh1+ {[%clk 0:00:02]}  Kg8 {[%clk 0:00:56]} 35. Rxa5 {[%clk 0:00:03]}  Re1+ {[%clk 0:00:51]} 36. Rxe1 {[%clk 0:00:03]}  Nxe1 {[%clk 0:00:52]} 37. Re5 {[%clk 0:00:03]} 0-1


[Site "https://www.chess.com"]

[Event "Titled Tuesday Blitz June 6 Early 2023"]
[White "Goryachkina, Aleksandra"]
[Black "Matveeva, Olga"]
[WhiteFideId "4147103"]
[BlackFideId "24107018"]
[WhiteElo "2471"]
[BlackElo "2009"]
[Result "0-1"]
[Round "4"]
[TimeControl "180+2"]
[Date "2023.06.06"]
[WhiteClock "0:00:02"]
[BlackClock "0:00:52"]
[Board "121"]

1. e4 {[%clk 0:02:59]}  e6 {[%clk 0:03:00]} 2. d4 {[%clk 0:02:59]}  d5 {[%clk 0:03:01]} 3. Nc3 {[%clk 0:02:58]}  Nf6 {[%clk 0:03:00]} 4. Bg5 {[%clk 0:02:57]}  Bb4 {[%clk 0:02:59]} 5. e5 {[%clk 0:02:49]}  h6 {[%clk 0:02:59]} 6. Bd2 {[%clk 0:02:45]}  Bxc3 {[%clk 0:02:58]} 7. bxc3 {[%clk 0:02:38]}  Ne4 {[%clk 0:02:58]} 8. Bd3 {[%clk 0:02:38]}  Nxd2 {[%clk 0:02:50]} 9. Qxd2 {[%clk 0:02:38]}  c5 {[%clk 0:02:50]} 10. f4 {[%clk 0:02:30]}  c4 {[%clk 0:02:49]} 11. Be2 {[%clk 0:02:30]}  Nc6 {[%clk 0:02:48]} 12. Nf3 {[%clk 0:02:30]}  Bd7 {[%clk 0:02:45]} 13. O-O {[%clk 0:02:26]}  Ne7 {[%clk 0:02:43]} 14. a4 {[%clk 0:02:17]}  Qa5 {[%clk 0:02:40]} 15. Rfb1 {[%clk 0:02:15]}  Rb8 {[%clk 0:02:35]} 16. Rb4 {[%clk 0:02:12]}  O-O {[%clk 0:02:31]} 17. g4 {[%clk 0:02:00]}  b5 {[%clk 0:02:16]} 18. Rab1 {[%clk 0:01:39]}  a6 {[%clk 0:02:15]} 19. axb5 {[%clk 0:01:37]}  axb5 {[%clk 0:02:12]} 20. Kh1 {[%clk 0:01:30]}  Nc6 {[%clk 0:02:00]} 21. R4b2 {[%clk 0:01:29]}  f6 {[%clk 0:01:42]} 22. Rg1 {[%clk 0:00:48]}  fxe5 {[%clk 0:01:29]} 23. fxe5 {[%clk 0:00:27]}  Qa3 {[%clk 0:01:27]} 24. Rbb1 {[%clk 0:00:20]}  b4 {[%clk 0:01:22]} 25. g5 {[%clk 0:00:20]}  h5 {[%clk 0:01:13]} 26. g6 {[%clk 0:00:09]}  Qxc3 {[%clk 0:01:10]} 27. Qg5 {[%clk 0:00:09]}  Rxf3 {[%clk 0:01:04]} 28. Qxh5 {[%clk 0:00:09]}  Rh3 {[%clk 0:01:03]} 29. Qg5 {[%clk 0:00:02]}  Nxd4 {[%clk 0:01:01]} 30. Bg4 {[%clk 0:00:02]}  Nf3 {[%clk 0:00:52]} 0-1


[Site "https://www.chess.com"]

[Event "Titled Tuesday Blitz June 6 Early 2023"]
[White "Tarasova, Viktoriya"]
[Black "Goroshkov, Maksym"]
[WhiteFideId "4175840"]
[BlackFideId "14142716"]
[WhiteElo "2182"]
[BlackElo "2322"]
[Result "0-1"]
[Round "4"]
[TimeControl "180+2"]
[Date "2023.06.06"]
[WhiteClock "0:00:07"]
[BlackClock "0:01:03"]
[Board "125"]

1. d4 {[%clk 0:03:00]}  Nf6 {[%clk 0:02:57]} 2. c4 {[%clk 0:03:00]}  e5 {[%clk 0:02:57]} 3. dxe5 {[%clk 0:03:00]}  Ng4 {[%clk 0:02:57]} 4. e3 {[%clk 0:03:01]}  Nxe5 {[%clk 0:02:57]} 5. f4 {[%clk 0:03:01]}  Ng6 {[%clk 0:02:57]} 6. Bd3 {[%clk 0:03:01]}  Bc5 {[%clk 0:02:56]} 7. Qh5 {[%clk 0:02:55]}  d6 {[%clk 0:02:50]} 8. Nc3 {[%clk 0:02:53]}  O-O {[%clk 0:02:49]} 9. Nge2 {[%clk 0:02:52]}  Qh4+ {[%clk 0:02:44]} 10. Qxh4 {[%clk 0:02:50]}  Nxh4 {[%clk 0:02:45]} 11. O-O {[%clk 0:02:47]}  Bf5 {[%clk 0:02:44]} 12. Rd1 {[%clk 0:02:34]}  Bxd3 {[%clk 0:02:37]} 13. Rxd3 {[%clk 0:02:33]}  h5 {[%clk 0:02:36]} 14. Nd5 {[%clk 0:02:24]}  Na6 {[%clk 0:02:33]} 15. Bd2 {[%clk 0:02:02]}  Nf5 {[%clk 0:02:26]} 16. b4 {[%clk 0:01:58]}  Bb6 {[%clk 0:02:25]} 17. Nxb6 {[%clk 0:01:54]}  axb6 {[%clk 0:02:26]} 18. e4 {[%clk 0:01:53]}  Ne7 {[%clk 0:02:23]} 19. Rb1 {[%clk 0:01:23]}  Nb8 {[%clk 0:02:21]} 20. a3 {[%clk 0:01:20]}  Nd7 {[%clk 0:02:17]} 21. Kf2 {[%clk 0:01:10]}  Nf6 {[%clk 0:02:15]} 22. Kf3 {[%clk 0:01:08]}  Ng6 {[%clk 0:02:09]} 23. Nd4 {[%clk 0:00:45]}  Rfe8 {[%clk 0:02:07]} 24. Re1 {[%clk 0:00:43]}  Nh4+ {[%clk 0:01:54]} 25. Kg3 {[%clk 0:00:37]}  Ng6 {[%clk 0:01:52]} 26. Kf3 {[%clk 0:00:36]}  c6 {[%clk 0:01:51]} 27. g3 {[%clk 0:00:34]}  d5 {[%clk 0:01:49]} 28. cxd5 {[%clk 0:00:33]}  cxd5 {[%clk 0:01:50]} 29. e5 {[%clk 0:00:34]}  Ne4 {[%clk 0:01:49]} 30. Bc1 {[%clk 0:00:29]}  Rac8 {[%clk 0:01:37]} 31. Nb5 {[%clk 0:00:28]}  Red8 {[%clk 0:01:37]} 32. Red1 {[%clk 0:00:14]}  f5 {[%clk 0:01:33]} 33. Be3 {[%clk 0:00:11]}  Ne7 {[%clk 0:01:30]} 34. Bxb6 {[%clk 0:00:11]}  Rd7 {[%clk 0:01:28]} 35. Be3 {[%clk 0:00:10]}  Rc2 {[%clk 0:01:26]} 36. Nd4 {[%clk 0:00:10]}  Rxh2 {[%clk 0:01:24]} 37. e6 {[%clk 0:00:09]}  Rc7 {[%clk 0:01:23]} 38. Nb5 {[%clk 0:00:09]}  Rcc2 {[%clk 0:01:23]} 39. Rxd5 {[%clk 0:00:09]}  Nxd5 {[%clk 0:01:22]} 40. Rxd5 {[%clk 0:00:09]}  Rhg2 {[%clk 0:01:20]} 41. Rxf5 {[%clk 0:00:07]}  Nxg3 {[%clk 0:01:20]} 42. e7 {[%clk 0:00:06]}  Nxf5 {[%clk 0:01:16]} 43. e8=Q+ {[%clk 0:00:06]}  Kh7 {[%clk 0:01:17]} 44. Qxh5+ {[%clk 0:00:07]}  Nh6 {[%clk 0:01:18]} 45. f5 {[%clk 0:00:06]}  Rh2 {[%clk 0:01:16]} 46. Qg6+ {[%clk 0:00:05]}  Kh8 {[%clk 0:01:15]} 47. Qe8+ {[%clk 0:00:06]}  Ng8 {[%clk 0:01:15]} 48. Qg6 {[%clk 0:00:06]}  Nf6 {[%clk 0:01:13]} 49. Qf7 {[%clk 0:00:06]}  Rh3+ {[%clk 0:01:13]} 50. Kf4 {[%clk 0:00:06]}  Rh4+ {[%clk 0:01:11]} 51. Kf3 {[%clk 0:00:06]}  Rh3+ {[%clk 0:01:08]} 52. Kf4 {[%clk 0:00:06]}  Rc4+ {[%clk 0:01:06]} 53. Ke5 {[%clk 0:00:06]}  Rxe3+ {[%clk 0:01:04]} 54. Kd6 {[%clk 0:00:07]}  Rc6# {[%clk 0:01:03]} 0-1


[Site "https://www.chess.com"]

[Event "Titled Tuesday Blitz June 6 Early 2023"]
[White "Shapiro, Daniel"]
[Black "Manukyan, Sargis A."]
[WhiteFideId "2001780"]
[BlackFideId "13303970"]
[WhiteElo "2387"]
[BlackElo "2187"]
[Result "0-1"]
[Round "4"]
[TimeControl "180+2"]
[Date "2023.06.06"]
[WhiteClock "0:00:02"]
[BlackClock "0:01:46"]
[Board "127"]

1. d4 {[%clk 0:03:00]}  Nf6 {[%clk 0:02:58]} 2. c4 {[%clk 0:03:00]}  e6 {[%clk 0:02:57]} 3. g3 {[%clk 0:03:00]}  c5 {[%clk 0:02:58]} 4. d5 {[%clk 0:02:59]}  exd5 {[%clk 0:02:58]} 5. cxd5 {[%clk 0:03:00]}  d6 {[%clk 0:02:59]} 6. Nc3 {[%clk 0:03:00]}  Nbd7 {[%clk 0:02:59]} 7. Nf3 {[%clk 0:02:59]}  a6 {[%clk 0:02:59]} 8. a4 {[%clk 0:02:58]}  g6 {[%clk 0:03:00]} 9. Bg2 {[%clk 0:02:54]}  Bg7 {[%clk 0:03:00]} 10. Bf4 {[%clk 0:02:23]}  Qc7 {[%clk 0:03:00]} 11. Rc1 {[%clk 0:02:16]}  O-O {[%clk 0:02:59]} 12. h3 {[%clk 0:02:16]}  b6 {[%clk 0:02:58]} 13. g4 {[%clk 0:02:13]}  Re8 {[%clk 0:02:58]} 14. O-O {[%clk 0:02:11]}  Ne4 {[%clk 0:02:58]} 15. Qc2 {[%clk 0:01:48]}  Nxc3 {[%clk 0:02:53]} 16. bxc3 {[%clk 0:01:47]}  b5 {[%clk 0:02:53]} 17. Rfe1 {[%clk 0:01:36]}  Bb7 {[%clk 0:02:49]} 18. e4 {[%clk 0:01:35]}  Ne5 {[%clk 0:02:48]} 19. Nxe5 {[%clk 0:01:27]}  dxe5 {[%clk 0:02:48]} 20. Be3 {[%clk 0:01:12]}  Bc8 {[%clk 0:02:46]} 21. Qd2 {[%clk 0:01:09]}  Bd7 {[%clk 0:02:45]} 22. f4 {[%clk 0:01:02]}  Qd6 {[%clk 0:02:26]} 23. Rf1 {[%clk 0:01:00]}  exf4 {[%clk 0:02:25]} 24. Bxf4 {[%clk 0:00:59]}  Be5 {[%clk 0:02:26]} 25. a5 {[%clk 0:00:51]}  b4 {[%clk 0:02:20]} 26. cxb4 {[%clk 0:00:44]}  cxb4 {[%clk 0:02:20]} 27. Rf3 {[%clk 0:00:38]}  Bb5 {[%clk 0:02:19]} 28. Bf1 {[%clk 0:00:35]}  Bxf4 {[%clk 0:02:18]} 29. Qxf4 {[%clk 0:00:34]}  Qxf4 {[%clk 0:02:17]} 30. Rxf4 {[%clk 0:00:34]}  Bxf1 {[%clk 0:02:18]} 31. Rcxf1 {[%clk 0:00:34]}  Ra7 {[%clk 0:02:19]} 32. Rb1 {[%clk 0:00:28]}  Rb7 {[%clk 0:02:18]} 33. d6 {[%clk 0:00:28]}  Re6 {[%clk 0:02:17]} 34. e5 {[%clk 0:00:25]}  Rxe5 {[%clk 0:02:16]} 35. Rfxb4 {[%clk 0:00:25]}  Rd7 {[%clk 0:02:15]} 36. Rb6 {[%clk 0:00:23]}  Rxa5 {[%clk 0:02:15]} 37. Rd1 {[%clk 0:00:21]}  Ra3 {[%clk 0:02:14]} 38. Rc6 {[%clk 0:00:20]}  Rg3+ {[%clk 0:01:58]} 39. Kh2 {[%clk 0:00:19]}  Rb3 {[%clk 0:01:59]} 40. Rc7 {[%clk 0:00:15]}  Rb2+ {[%clk 0:01:58]} 41. Kg3 {[%clk 0:00:14]}  Rd8 {[%clk 0:01:59]} 42. d7 {[%clk 0:00:14]}  Rb3+ {[%clk 0:02:00]} 43. Kf2 {[%clk 0:00:13]}  Rbb8 {[%clk 0:02:01]} 44. Ke3 {[%clk 0:00:09]}  a5 {[%clk 0:02:00]} 45. Ke4 {[%clk 0:00:07]}  a4 {[%clk 0:02:00]} 46. Ke5 {[%clk 0:00:07]}  a3 {[%clk 0:02:00]} 47. Kd6 {[%clk 0:00:07]}  a2 {[%clk 0:01:57]} 48. Ra1 {[%clk 0:00:07]}  Kf8 {[%clk 0:01:53]} 49. Rxa2 {[%clk 0:00:06]}  Rb6+ {[%clk 0:01:53]} 50. Rc6 {[%clk 0:00:06]}  Rb7 {[%clk 0:01:50]} 51. Rc7 {[%clk 0:00:06]}  Rb6+ {[%clk 0:01:51]} 52. Rc6 {[%clk 0:00:06]}  Rb7 {[%clk 0:01:49]} 53. Rc7 {[%clk 0:00:07]}  Rb1 {[%clk 0:01:50]} 54. Rac2 {[%clk 0:00:05]}  Rd1+ {[%clk 0:01:49]} 55. Kc6 {[%clk 0:00:06]}  h6 {[%clk 0:01:47]} 56. Rc3 {[%clk 0:00:03]}  Rd2 {[%clk 0:01:47]} 57. Kb7 {[%clk 0:00:03]}  R2xd7 {[%clk 0:01:47]} 58. Rxd7 {[%clk 0:00:02]}  Rxd7+ {[%clk 0:01:47]} 59. Kc6 {[%clk 0:00:02]}  Rd1 {[%clk 0:01:47]} 60. Re3 {[%clk 0:00:02]}  Kg7 {[%clk 0:01:48]} 61. Rf3 {[%clk 0:00:02]}  Rd2 {[%clk 0:01:46]} 62. Kc5 {[%clk 0:00:02]}  f6 {[%clk 0:01:45]} 63. Kc4 {[%clk 0:00:02]}  Kf7 {[%clk 0:01:45]} 64. Kc3 {[%clk 0:00:02]}  Rd8 {[%clk 0:01:46]} 65. Kc4 {[%clk 0:00:02]}  Ke6 {[%clk 0:01:46]} 66. Kc3 {[%clk 0:00:02]}  f5 {[%clk 0:01:46]} 0-1


[Site "https://www.chess.com"]

[Event "Titled Tuesday Blitz June 6 Early 2023"]
[White "Kochiev, Ivan"]
[Black "FREDERICKtheMATE"]
[WhiteFideId "2917890"]
[WhiteElo "2287"]
[BlackElo "2378"]
[Result "1-0"]
[Round "4"]
[TimeControl "180+2"]
[Date "2023.06.06"]
[WhiteClock "0:00:28"]
[BlackClock "0:01:10"]
[Board "129"]

1. e4 {[%clk 0:02:56]}  c6 {[%clk 0:02:58]} 2. d4 {[%clk 0:02:56]}  d5 {[%clk 0:02:58]} 3. Nc3 {[%clk 0:02:56]}  dxe4 {[%clk 0:02:58]} 4. Nxe4 {[%clk 0:02:57]}  Nf6 {[%clk 0:02:57]} 5. Nxf6+ {[%clk 0:02:58]}  exf6 {[%clk 0:02:57]} 6. c3 {[%clk 0:02:58]}  Bd6 {[%clk 0:02:57]} 7. Bd3 {[%clk 0:02:59]}  O-O {[%clk 0:02:57]} 8. Ne2 {[%clk 0:03:00]}  Re8 {[%clk 0:02:57]} 9. O-O {[%clk 0:03:00]}  Nd7 {[%clk 0:02:57]} 10. Ng3 {[%clk 0:02:59]}  Nf8 {[%clk 0:02:57]} 11. f4 {[%clk 0:02:59]}  Qc7 {[%clk 0:02:56]} 12. f5 {[%clk 0:02:48]}  c5 {[%clk 0:02:48]} 13. d5 {[%clk 0:02:45]}  c4 {[%clk 0:02:47]} 14. Bc2 {[%clk 0:02:43]}  b5 {[%clk 0:02:47]} 15. Nh5 {[%clk 0:02:41]}  Be5 {[%clk 0:02:40]} 16. Bd2 {[%clk 0:02:12]}  Bb7 {[%clk 0:02:19]} 17. Qg4 {[%clk 0:02:12]}  g6 {[%clk 0:02:18]} 18. fxg6 {[%clk 0:02:11]}  fxg6 {[%clk 0:02:18]} 19. Nxf6+ {[%clk 0:02:07]}  Bxf6 {[%clk 0:02:18]} 20. Rxf6 {[%clk 0:02:08]}  Bxd5 {[%clk 0:02:18]} 21. Raf1 {[%clk 0:02:06]}  Rad8 {[%clk 0:02:08]} 22. Bh6 {[%clk 0:02:01]}  Qe5 {[%clk 0:01:50]} 23. R6f5 {[%clk 0:01:12]}  Qe6 {[%clk 0:01:37]} 24. h4 {[%clk 0:01:10]}  Nd7 {[%clk 0:01:24]} 25. Qd4 {[%clk 0:00:37]}  Ne5 {[%clk 0:01:11]} 26. Rf6 {[%clk 0:00:37]}  Qg4 {[%clk 0:01:10]} 27. Qxd5+ {[%clk 0:00:28]} 1-0


[Site "https://www.chess.com"]

[Event "Titled Tuesday Blitz June 6 Early 2023"]
[White "Pajeken, Jakob Leon"]
[Black "Mejia, Cherry Ann"]
[WhiteFideId "12942839"]
[BlackFideId "5206880"]
[WhiteElo "2424"]
[BlackElo "2007"]
[Result "1-0"]
[Round "4"]
[TimeControl "180+2"]
[Date "2023.06.06"]
[WhiteClock "0:01:50"]
[BlackClock "0:01:06"]
[Board "132"]

1. e4 {[%clk 0:02:56]}  c5 {[%clk 0:03:00]} 2. Nf3 {[%clk 0:02:55]}  Nc6 {[%clk 0:03:00]} 3. Nc3 {[%clk 0:02:54]}  e6 {[%clk 0:02:56]} 4. d4 {[%clk 0:02:53]}  cxd4 {[%clk 0:02:57]} 5. Nxd4 {[%clk 0:02:54]}  Qb6 {[%clk 0:02:57]} 6. Ndb5 {[%clk 0:02:36]}  a6 {[%clk 0:02:40]} 7. Nd6+ {[%clk 0:02:34]}  Bxd6 {[%clk 0:02:37]} 8. Qxd6 {[%clk 0:02:35]}  Qd4 {[%clk 0:02:35]} 9. Qxd4 {[%clk 0:02:26]}  Nxd4 {[%clk 0:02:35]} 10. Bd3 {[%clk 0:02:27]}  d6 {[%clk 0:02:29]} 11. Be3 {[%clk 0:02:24]}  Nc6 {[%clk 0:02:30]} 12. O-O-O {[%clk 0:02:23]}  Nf6 {[%clk 0:02:29]} 13. Be2 {[%clk 0:02:20]}  b5 {[%clk 0:02:29]} 14. a3 {[%clk 0:02:20]}  Ke7 {[%clk 0:02:18]} 15. g4 {[%clk 0:02:18]}  Bb7 {[%clk 0:02:14]} 16. g5 {[%clk 0:02:16]}  Nd7 {[%clk 0:02:14]} 17. f4 {[%clk 0:02:15]}  Rac8 {[%clk 0:02:13]} 18. Rd2 {[%clk 0:02:12]}  Nc5 {[%clk 0:02:04]} 19. Rhd1 {[%clk 0:02:10]}  Rhd8 {[%clk 0:02:03]} 20. Rxd6 {[%clk 0:02:07]}  Rxd6 {[%clk 0:01:40]} 21. Bxc5 {[%clk 0:02:06]}  Na5 {[%clk 0:01:19]} 22. Bxd6+ {[%clk 0:02:02]}  Ke8 {[%clk 0:01:19]} 23. Bb4 {[%clk 0:02:01]}  Nc4 {[%clk 0:01:16]} 24. b3 {[%clk 0:01:51]}  Nxa3 {[%clk 0:01:06]} 25. Kb2 {[%clk 0:01:50]} 1-0


[Site "https://www.chess.com"]

[Event "Titled Tuesday Blitz June 6 Early 2023"]
[White "Bruedigam, Martin"]
[Black "Polanco Nunez, Yoel Estarling"]
[WhiteFideId "24608033"]
[BlackFideId "6401783"]
[WhiteElo "2331"]
[BlackElo "2132"]
[Result "1-0"]
[Round "4"]
[TimeControl "180+2"]
[Date "2023.06.06"]
[WhiteClock "0:01:18"]
[BlackClock "0:01:00"]
[Board "135"]

1. d4 {[%clk 0:02:46]}  Nf6 {[%clk 0:02:59]} 2. c4 {[%clk 0:02:46]}  e6 {[%clk 0:02:59]} 3. Nc3 {[%clk 0:02:47]}  Bb4 {[%clk 0:03:00]} 4. Bd2 {[%clk 0:02:47]}  Kf8 {[%clk 0:02:59]} 5. Nf3 {[%clk 0:02:42]}  b6 {[%clk 0:02:58]} 6. e3 {[%clk 0:02:43]}  Bb7 {[%clk 0:02:58]} 7. Bd3 {[%clk 0:02:43]}  d6 {[%clk 0:02:53]} 8. O-O {[%clk 0:02:42]}  Nbd7 {[%clk 0:02:54]} 9. Qc2 {[%clk 0:02:40]}  a5 {[%clk 0:02:50]} 10. e4 {[%clk 0:02:38]}  e5 {[%clk 0:02:45]} 11. d5 {[%clk 0:02:35]}  Nc5 {[%clk 0:02:35]} 12. b3 {[%clk 0:02:33]}  a4 {[%clk 0:02:30]} 13. Nxa4 {[%clk 0:02:25]}  Bxd2 {[%clk 0:02:30]} 14. Nxc5 {[%clk 0:02:24]}  bxc5 {[%clk 0:02:27]} 15. Nxd2 {[%clk 0:02:23]}  h5 {[%clk 0:02:25]} 16. a3 {[%clk 0:02:21]}  h4 {[%clk 0:02:24]} 17. b4 {[%clk 0:02:20]}  cxb4 {[%clk 0:02:21]} 18. axb4 {[%clk 0:02:21]}  g5 {[%clk 0:02:20]} 19. c5 {[%clk 0:02:17]}  Ke7 {[%clk 0:02:03]} 20. Rfc1 {[%clk 0:02:01]}  Rxa1 {[%clk 0:02:03]} 21. Rxa1 {[%clk 0:02:00]}  g4 {[%clk 0:02:03]} 22. Nf1 {[%clk 0:02:00]}  g3 {[%clk 0:02:00]} 23. Ne3 {[%clk 0:01:31]}  gxh2+ {[%clk 0:01:53]} 24. Kh1 {[%clk 0:01:32]}  h3 {[%clk 0:01:53]} 25. g3 {[%clk 0:01:31]}  Qd7 {[%clk 0:01:30]} 26. c6 {[%clk 0:01:30]}  Bxc6 {[%clk 0:01:15]} 27. Qxc6 {[%clk 0:01:28]}  Qxc6 {[%clk 0:01:14]} 28. dxc6 {[%clk 0:01:29]}  Rb8 {[%clk 0:01:12]} 29. b5 {[%clk 0:01:29]}  Ke6 {[%clk 0:01:08]} 30. Kxh2 {[%clk 0:01:26]}  d5 {[%clk 0:01:03]} 31. exd5+ {[%clk 0:01:25]}  Kd6 {[%clk 0:01:03]} 32. Kxh3 {[%clk 0:01:22]}  e4 {[%clk 0:01:02]} 33. Be2 {[%clk 0:01:22]}  Ke5 {[%clk 0:00:59]} 34. Kg2 {[%clk 0:01:22]}  Nxd5 {[%clk 0:00:59]} 35. Nxd5 {[%clk 0:01:20]}  Kxd5 {[%clk 0:00:59]} 36. Rd1+ {[%clk 0:01:18]}  Ke6 {[%clk 0:01:00]} 37. Rd7 {[%clk 0:01:19]}  Rc8 {[%clk 0:01:00]} 38. Bc4+ {[%clk 0:01:18]}  Ke5 {[%clk 0:01:00]} 1-0


[Site "https://www.chess.com"]